[Event "Titled Tuesday Blitz July 11 Early 2023"]
[White "Kopczynski, Michal"]
[Black "Weishaeutel, Moritz"]
[WhiteFideId "1124200"]
[BlackFideId "12967300"]
[WhiteElo "2474"]
[BlackElo "2583"]
[Result "0-1"]
[Round "5"]
[TimeControl "180+2"]
[Date "2023.07.11"]
[WhiteClock "0:01:26"]
[BlackClock "0:02:00"]
[Board "90"]

1. e4 {[%clk 0:03:00]}  e5 {[%clk 0:03:00]} 2. Nf3 {[%clk 0:03:00]}  Nf6 {[%clk 0:03:00]} 3. Nc3 {[%clk 0:02:59]}  Nc6 {[%clk 0:03:00]} 4. Bb5 {[%clk 0:03:00]}  Bb4 {[%clk 0:02:58]} 5. d3 {[%clk 0:02:59]}  O-O {[%clk 0:02:57]} 6. O-O {[%clk 0:02:59]}  d6 {[%clk 0:02:52]} 7. h3 {[%clk 0:02:59]}  Ne7 {[%clk 0:02:51]} 8. Bg5 {[%clk 0:02:55]}  Ng6 {[%clk 0:02:50]} 9. Nd5 {[%clk 0:02:48]}  Bc5 {[%clk 0:02:50]} 10. Nxf6+ {[%clk 0:02:43]}  gxf6 {[%clk 0:02:50]} 11. Bh6 {[%clk 0:02:43]}  c6 {[%clk 0:02:46]} 12. Bxf8 {[%clk 0:02:38]}  Qxf8 {[%clk 0:02:46]} 13. Ba4 {[%clk 0:02:38]}  Nf4 {[%clk 0:02:39]} 14. Nh4 {[%clk 0:02:26]}  Qh6 {[%clk 0:02:09]} 15. Nf5 {[%clk 0:02:25]}  Bxf5 {[%clk 0:02:10]} 16. exf5 {[%clk 0:02:25]}  Kh8 {[%clk 0:02:11]} 17. Qf3 {[%clk 0:01:54]}  Rg8 {[%clk 0:02:09]} 18. c3 {[%clk 0:01:26]}  Nxh3+ {[%clk 0:02:00]} 0-1


[Site "https://www.chess.com"]

[Event "Titled Tuesday Blitz July 11 Early 2023"]
[White "Manukyan, Artyom"]
[Black "Balla, Tamas-Kristof"]
[WhiteFideId "13305786"]
[BlackFideId "1208497"]
[WhiteElo "2580"]
[BlackElo "2470"]
[Result "1-0"]
[Round "5"]
[TimeControl "180+2"]
[Date "2023.07.11"]
[WhiteClock "0:01:23"]
[BlackClock "0:00:17"]
[Board "91"]

1. e4 {[%clk 0:03:00]}  c5 {[%clk 0:03:00]} 2. Nc3 {[%clk 0:03:00]}  Nc6 {[%clk 0:02:59]} 3. Bb5 {[%clk 0:03:00]}  Nd4 {[%clk 0:02:57]} 4. Nf3 {[%clk 0:03:00]}  Nf6 {[%clk 0:02:51]} 5. O-O {[%clk 0:02:59]}  Nxb5 {[%clk 0:02:47]} 6. Nxb5 {[%clk 0:02:59]}  g6 {[%clk 0:02:15]} 7. d4 {[%clk 0:02:55]}  a6 {[%clk 0:01:57]} 8. Nc3 {[%clk 0:02:46]}  cxd4 {[%clk 0:01:57]} 9. Qxd4 {[%clk 0:02:47]}  d6 {[%clk 0:01:35]} 10. Rd1 {[%clk 0:02:31]}  Bg7 {[%clk 0:01:15]} 11. e5 {[%clk 0:02:19]}  Nd7 {[%clk 0:01:15]} 12. Bf4 {[%clk 0:01:51]}  O-O {[%clk 0:01:11]} 13. Qd2 {[%clk 0:01:47]}  Qb6 {[%clk 0:00:49]} 14. Nd5 {[%clk 0:01:40]}  Qxb2 {[%clk 0:00:34]} 15. Nxe7+ {[%clk 0:01:39]}  Kh8 {[%clk 0:00:34]} 16. Rab1 {[%clk 0:01:28]}  Qxa2 {[%clk 0:00:30]} 17. exd6 {[%clk 0:01:28]}  Nc5 {[%clk 0:00:23]} 18. Bh6 {[%clk 0:01:24]}  Be6 {[%clk 0:00:20]} 19. Bxg7+ {[%clk 0:01:23]}  Kxg7 {[%clk 0:00:17]} 20. Qd4+ {[%clk 0:01:23]} 1-0


[Site "https://www.chess.com"]

[Event "Titled Tuesday Blitz July 11 Early 2023"]
[White "Ergazakis, Ioannis"]
[Black "Shohat, Yotam"]
[WhiteFideId "4290976"]
[BlackFideId "2813955"]
[WhiteElo "2453"]
[BlackElo "2576"]
[Result "1-0"]
[Round "5"]
[TimeControl "180+2"]
[Date "2023.07.11"]
[WhiteClock "0:01:13"]
[BlackClock "0:00:00"]
[Board "96"]

1. e4 {[%clk 0:03:00]}  c5 {[%clk 0:02:58]} 2. Nf3 {[%clk 0:03:01]}  d6 {[%clk 0:02:57]} 3. d4 {[%clk 0:03:01]}  cxd4 {[%clk 0:02:55]} 4. Nxd4 {[%clk 0:03:02]}  Nf6 {[%clk 0:02:56]} 5. Nc3 {[%clk 0:03:02]}  a6 {[%clk 0:02:56]} 6. Be2 {[%clk 0:03:03]}  e5 {[%clk 0:02:56]} 7. Nb3 {[%clk 0:03:04]}  Be7 {[%clk 0:02:54]} 8. O-O {[%clk 0:03:04]}  O-O {[%clk 0:02:54]} 9. Kh1 {[%clk 0:03:05]}  b5 {[%clk 0:02:52]} 10. a4 {[%clk 0:03:02]}  b4 {[%clk 0:02:51]} 11. Nd5 {[%clk 0:03:02]}  Bb7 {[%clk 0:02:46]} 12. Nxe7+ {[%clk 0:02:50]}  Qxe7 {[%clk 0:02:46]} 13. f3 {[%clk 0:02:51]}  a5 {[%clk 0:02:30]} 14. Be3 {[%clk 0:02:41]}  Nc6 {[%clk 0:02:09]} 15. Bb5 {[%clk 0:02:34]}  Qc7 {[%clk 0:01:50]} 16. Bg5 {[%clk 0:02:29]}  Ne7 {[%clk 0:01:42]} 17. Bxf6 {[%clk 0:02:12]}  gxf6 {[%clk 0:01:43]} 18. Qd2 {[%clk 0:02:06]}  Rad8 {[%clk 0:01:32]} 19. Qh6 {[%clk 0:02:05]}  Ng6 {[%clk 0:01:31]} 20. h4 {[%clk 0:02:00]}  Qxc2 {[%clk 0:01:09]} 21. Nxa5 {[%clk 0:01:59]}  Ba8 {[%clk 0:00:40]} 22. Rac1 {[%clk 0:01:53]}  Qxb2 {[%clk 0:00:36]} 23. Nc4 {[%clk 0:01:53]}  Qa2 {[%clk 0:00:32]} 24. Ne3 {[%clk 0:01:53]}  Kh8 {[%clk 0:00:20]} 25. h5 {[%clk 0:01:46]}  Rg8 {[%clk 0:00:17]} 26. Bc4 {[%clk 0:01:18]}  Qd2 {[%clk 0:00:13]} 27. Bxf7 {[%clk 0:01:17]}  b3 {[%clk 0:00:02]} 28. Bxg8 {[%clk 0:01:12]}  Rxg8 {[%clk 0:00:02]} 29. hxg6 {[%clk 0:01:13]}  Rxg6 {[%clk 0:00:00]} 30. Rc8+ {[%clk 0:01:13]} 1-0


[Site "https://www.chess.com"]

[Event "Titled Tuesday Blitz July 11 Early 2023"]
[White "Tologon tegin, Semetei"]
[Black "Jimenez Ruano, Adrian"]
[WhiteFideId "13800574"]
[BlackFideId "22276050"]
[WhiteElo "2576"]
[BlackElo "2451"]
[Result "1-0"]
[Round "5"]
[TimeControl "180+2"]
[Date "2023.07.11"]
[WhiteClock "0:00:53"]
[BlackClock "0:00:00"]
[Board "97"]

1. Nf3 {[%clk 0:02:49]}  d5 {[%clk 0:02:57]} 2. b3 {[%clk 0:02:50]}  c5 {[%clk 0:02:54]} 3. Bb2 {[%clk 0:02:51]}  Nc6 {[%clk 0:02:54]} 4. g3 {[%clk 0:02:52]}  Nf6 {[%clk 0:02:54]} 5. Bg2 {[%clk 0:02:53]}  e6 {[%clk 0:02:49]} 6. c4 {[%clk 0:02:52]}  d4 {[%clk 0:02:48]} 7. e3 {[%clk 0:02:49]}  e5 {[%clk 0:02:48]} 8. exd4 {[%clk 0:02:49]}  exd4 {[%clk 0:02:49]} 9. O-O {[%clk 0:02:49]}  Be7 {[%clk 0:02:48]} 10. Re1 {[%clk 0:02:48]}  O-O {[%clk 0:02:48]} 11. d3 {[%clk 0:02:48]}  h6 {[%clk 0:02:40]} 12. Nbd2 {[%clk 0:02:46]}  Bf5 {[%clk 0:02:39]} 13. Qb1 {[%clk 0:02:32]}  Re8 {[%clk 0:02:35]} 14. Ne5 {[%clk 0:02:30]}  Qc7 {[%clk 0:02:18]} 15. Nxc6 {[%clk 0:02:28]}  bxc6 {[%clk 0:02:19]} 16. Ne4 {[%clk 0:02:26]}  Nd7 {[%clk 0:02:12]} 17. Qc2 {[%clk 0:02:24]}  Bg6 {[%clk 0:02:10]} 18. Bc1 {[%clk 0:02:21]}  f5 {[%clk 0:01:54]} 19. Bf4 {[%clk 0:02:20]}  Qb6 {[%clk 0:01:46]} 20. Nd6 {[%clk 0:02:19]}  Bxd6 {[%clk 0:01:38]} 21. Bxd6 {[%clk 0:02:20]}  Nf6 {[%clk 0:01:30]} 22. h3 {[%clk 0:02:10]}  Qa5 {[%clk 0:01:30]} 23. Kf1 {[%clk 0:02:08]}  Rad8 {[%clk 0:01:16]} 24. Be5 {[%clk 0:02:05]}  f4 {[%clk 0:01:07]} 25. Bxc6 {[%clk 0:01:57]}  Re6 {[%clk 0:00:50]} 26. Bxf6 {[%clk 0:01:54]}  Rxf6 {[%clk 0:00:51]} 27. Bd5+ {[%clk 0:01:50]}  Rxd5 {[%clk 0:00:38]} 28. cxd5 {[%clk 0:01:51]}  fxg3 {[%clk 0:00:38]} 29. Re2 {[%clk 0:01:21]}  Qb5 {[%clk 0:00:39]} 30. Rd1 {[%clk 0:01:19]}  Bh5 {[%clk 0:00:31]} 31. Rdd2 {[%clk 0:01:12]}  Qd7 {[%clk 0:00:25]} 32. Kg2 {[%clk 0:01:08]}  Qxd5+ {[%clk 0:00:17]} 33. Re4 {[%clk 0:01:06]}  Bf3+ {[%clk 0:00:15]} 34. Kxg3 {[%clk 0:01:01]}  Qg5+ {[%clk 0:00:13]} 35. Rg4 {[%clk 0:01:01]}  Bxg4 {[%clk 0:00:09]} 36. hxg4 {[%clk 0:01:02]}  Rf4 {[%clk 0:00:06]} 37. Qc4+ {[%clk 0:00:58]}  Kh7 {[%clk 0:00:06]} 38. Qe6 {[%clk 0:00:55]}  h5 {[%clk 0:00:03]} 39. f3 {[%clk 0:00:55]}  hxg4 {[%clk 0:00:00]} 40. Rh2+ {[%clk 0:00:53]} 1-0


[Site "https://www.chess.com"]

[Event "Titled Tuesday Blitz July 11 Early 2023"]
[White "ArtemDyachuk"]
[Black "Nunez V, Gustavo Eduardo"]
[BlackFideId "4403690"]
[WhiteElo "2574"]
[BlackElo "2451"]
[Result "1-0"]
[Round "5"]
[TimeControl "180+2"]
[Date "2023.07.11"]
[WhiteClock "0:01:12"]
[BlackClock "0:00:49"]
[Board "98"]

1. e4 {[%clk 0:03:00]}  c5 {[%clk 0:02:11]} 2. Nf3 {[%clk 0:03:00]}  Nc6 {[%clk 0:02:11]} 3. Bb5 {[%clk 0:02:56]}  g6 {[%clk 0:02:10]} 4. O-O {[%clk 0:02:55]}  Bg7 {[%clk 0:02:10]} 5. c3 {[%clk 0:02:55]}  e5 {[%clk 0:02:09]} 6. d4 {[%clk 0:02:54]}  exd4 {[%clk 0:02:10]} 7. cxd4 {[%clk 0:02:54]}  Nxd4 {[%clk 0:02:10]} 8. Nxd4 {[%clk 0:02:52]}  cxd4 {[%clk 0:02:11]} 9. Bf4 {[%clk 0:02:51]}  a6 {[%clk 0:02:11]} 10. Ba4 {[%clk 0:02:49]}  b5 {[%clk 0:02:08]} 11. Bb3 {[%clk 0:02:49]}  d6 {[%clk 0:02:08]} 12. Qf3 {[%clk 0:02:35]}  Be6 {[%clk 0:02:02]} 13. Bxe6 {[%clk 0:01:51]}  fxe6 {[%clk 0:02:03]} 14. e5 {[%clk 0:01:51]}  dxe5 {[%clk 0:02:02]} 15. Qc6+ {[%clk 0:01:51]}  Kf7 {[%clk 0:02:02]} 16. Bg5 {[%clk 0:01:45]}  Qc8 {[%clk 0:01:59]} 17. Qf3+ {[%clk 0:01:44]}  Bf6 {[%clk 0:01:53]} 18. Nd2 {[%clk 0:01:36]}  h6 {[%clk 0:01:48]} 19. Ne4 {[%clk 0:01:35]}  hxg5 {[%clk 0:01:46]} 20. Nd6+ {[%clk 0:01:34]}  Kg7 {[%clk 0:01:46]} 21. Nxc8 {[%clk 0:01:34]}  Rxc8 {[%clk 0:01:47]} 22. Rac1 {[%clk 0:01:34]}  Ne7 {[%clk 0:01:43]} 23. Qb7 {[%clk 0:01:33]}  Rc4 {[%clk 0:01:40]} 24. Qxa6 {[%clk 0:01:31]}  Rhc8 {[%clk 0:01:39]} 25. Rxc4 {[%clk 0:01:29]}  bxc4 {[%clk 0:01:40]} 26. Qxe6 {[%clk 0:01:29]}  c3 {[%clk 0:01:37]} 27. bxc3 {[%clk 0:01:28]}  dxc3 {[%clk 0:01:38]} 28. Rc1 {[%clk 0:01:27]}  Rc6 {[%clk 0:01:38]} 29. Qb3 {[%clk 0:01:25]}  e4 {[%clk 0:01:38]} 30. a4 {[%clk 0:01:23]}  Nf5 {[%clk 0:01:13]} 31. Qb7+ {[%clk 0:01:20]}  Ne7 {[%clk 0:01:13]} 32. a5 {[%clk 0:01:20]}  Bd4 {[%clk 0:01:05]} 33. Qxe7+ {[%clk 0:01:18]}  Kh6 {[%clk 0:01:04]} 34. Qd8 {[%clk 0:01:17]}  Bg7 {[%clk 0:00:58]} 35. h4 {[%clk 0:01:17]}  c2 {[%clk 0:00:52]} 36. hxg5+ {[%clk 0:01:16]}  Kh5 {[%clk 0:00:52]} 37. g3 {[%clk 0:01:15]}  Bb2 {[%clk 0:00:47]} 38. Rxc2 {[%clk 0:01:11]}  Rxc2 {[%clk 0:00:48]} 39. Qd1+ {[%clk 0:01:11]}  Kxg5 {[%clk 0:00:48]} 40. Qxc2 {[%clk 0:01:11]}  Bc3 {[%clk 0:00:48]} 41. a6 {[%clk 0:01:12]}  Bd4 {[%clk 0:00:47]} 42. Qc4 {[%clk 0:01:11]}  Ba7 {[%clk 0:00:48]} 43. Qb5+ {[%clk 0:01:12]}  Kg4 {[%clk 0:00:48]} 44. Qd7+ {[%clk 0:01:11]}  Kf3 {[%clk 0:00:48]} 45. Qxa7 {[%clk 0:01:12]}  g5 {[%clk 0:00:47]} 46. Qe3+ {[%clk 0:01:11]}  Kg4 {[%clk 0:00:48]} 47. Qxe4+ {[%clk 0:01:11]}  Kh3 {[%clk 0:00:49]} 48. a7 {[%clk 0:01:11]}  g4 {[%clk 0:00:49]} 49. Qh7# {[%clk 0:01:12]} 1-0


[Site "https://www.chess.com"]

[Event "Titled Tuesday Blitz July 11 Early 2023"]
[White "Zheenbekov, Nurgazy"]
[Black "Girya, Olga"]
[WhiteFideId "13800485"]
[BlackFideId "4195752"]
[WhiteElo "2444"]
[BlackElo "2574"]
[Result "1-0"]
[Round "5"]
[TimeControl "180+2"]
[Date "2023.07.11"]
[WhiteClock "0:00:02"]
[BlackClock "0:00:01"]
[Board "99"]

1. e4 {[%clk 0:03:00]}  e5 {[%clk 0:02:59]} 2. Nf3 {[%clk 0:02:59]}  Nc6 {[%clk 0:03:00]} 3. Bb5 {[%clk 0:02:59]}  a6 {[%clk 0:03:00]} 4. Ba4 {[%clk 0:02:59]}  Nf6 {[%clk 0:03:00]} 5. O-O {[%clk 0:02:58]}  Nxe4 {[%clk 0:03:00]} 6. d4 {[%clk 0:02:57]}  b5 {[%clk 0:03:00]} 7. Bb3 {[%clk 0:02:57]}  d5 {[%clk 0:03:01]} 8. dxe5 {[%clk 0:02:57]}  Be6 {[%clk 0:03:01]} 9. Nbd2 {[%clk 0:02:56]}  Be7 {[%clk 0:03:01]} 10. c3 {[%clk 0:02:56]}  Nc5 {[%clk 0:03:01]} 11. Bc2 {[%clk 0:02:56]}  d4 {[%clk 0:03:02]} 12. Nb3 {[%clk 0:02:40]}  d3 {[%clk 0:03:02]} 13. Bb1 {[%clk 0:02:40]}  Nxb3 {[%clk 0:03:01]} 14. axb3 {[%clk 0:02:40]}  Bf5 {[%clk 0:03:02]} 15. h3 {[%clk 0:02:34]}  O-O {[%clk 0:03:01]} 16. Be3 {[%clk 0:02:33]}  Qd5 {[%clk 0:03:00]} 17. b4 {[%clk 0:02:08]}  Nxe5 {[%clk 0:02:42]} 18. Nxe5 {[%clk 0:02:03]}  Qxe5 {[%clk 0:02:42]} 19. Bxd3 {[%clk 0:02:02]}  Rfd8 {[%clk 0:02:18]} 20. Bd4 {[%clk 0:02:02]}  Qd5 {[%clk 0:02:18]} 21. Bxf5 {[%clk 0:02:01]}  Qxf5 {[%clk 0:02:19]} 22. Qe2 {[%clk 0:01:54]}  Bxb4 {[%clk 0:01:58]} 23. Rfe1 {[%clk 0:01:38]}  Bf8 {[%clk 0:01:54]} 24. b4 {[%clk 0:01:13]}  Rd6 {[%clk 0:01:34]} 25. Qe3 {[%clk 0:01:09]}  Re6 {[%clk 0:01:31]} 26. Qg3 {[%clk 0:01:09]}  Rxe1+ {[%clk 0:00:58]} 27. Rxe1 {[%clk 0:01:09]}  Qd7 {[%clk 0:00:58]} 28. Qf3 {[%clk 0:01:06]}  Re8 {[%clk 0:00:53]} 29. Ra1 {[%clk 0:01:05]}  Re6 {[%clk 0:00:39]} 30. Qa8 {[%clk 0:01:05]}  Qc6 {[%clk 0:00:33]} 31. Qc8 {[%clk 0:00:45]}  Rg6 {[%clk 0:00:32]} 32. g3 {[%clk 0:00:43]}  Re6 {[%clk 0:00:25]} 33. Bc5 {[%clk 0:00:35]}  Re8 {[%clk 0:00:24]} 34. Qxa6 {[%clk 0:00:29]}  Re1+ {[%clk 0:00:23]} 35. Rxe1 {[%clk 0:00:03]}  Qxa6 {[%clk 0:00:23]} 36. Re8 {[%clk 0:00:03]}  g6 {[%clk 0:00:14]} 37. Bxf8 {[%clk 0:00:02]}  f6 {[%clk 0:00:14]} 38. Bc5+ {[%clk 0:00:02]}  Kf7 {[%clk 0:00:14]} 39. Re7+ {[%clk 0:00:03]}  Kg8 {[%clk 0:00:12]} 40. Rxc7 {[%clk 0:00:03]}  Qa1+ {[%clk 0:00:10]} 41. Kh2 {[%clk 0:00:03]}  Qxc3 {[%clk 0:00:09]} 42. Rc8+ {[%clk 0:00:03]}  Kf7 {[%clk 0:00:09]} 43. Rc7+ {[%clk 0:00:04]}  Ke6 {[%clk 0:00:09]} 44. Re7+ {[%clk 0:00:04]}  Kd5 {[%clk 0:00:09]} 45. Rxh7 {[%clk 0:00:04]}  Qc2 {[%clk 0:00:08]} 46. Rf7 {[%clk 0:00:04]}  Qf5 {[%clk 0:00:08]} 47. Rf8 {[%clk 0:00:03]}  Ke4 {[%clk 0:00:07]} 48. Re8+ {[%clk 0:00:03]}  Kd3 {[%clk 0:00:07]} 49. Re3+ {[%clk 0:00:02]}  Kd2 {[%clk 0:00:07]} 50. Re7 {[%clk 0:00:02]}  Kc3 {[%clk 0:00:06]} 51. h4 {[%clk 0:00:02]}  Qf3 {[%clk 0:00:07]} 52. Re8 {[%clk 0:00:02]}  f5 {[%clk 0:00:07]} 53. Re3+ {[%clk 0:00:02]}  Qxe3 {[%clk 0:00:01]} 54. fxe3 {[%clk 0:00:02]} 1-0


[Site "https://www.chess.com"]

[Event "Titled Tuesday Blitz July 11 Early 2023"]
[White "Begunov, Konstantin"]
[Black "Prestia, Paris"]
[WhiteFideId "4118510"]
[BlackFideId "30925959"]
[WhiteElo "2441"]
[BlackElo "2573"]
[Result "0-1"]
[Round "5"]
[TimeControl "180+2"]
[Date "2023.07.11"]
[WhiteClock "0:00:03"]
[BlackClock "0:00:22"]
[Board "100"]

1. d4 {[%clk 0:03:00]}  Nf6 {[%clk 0:02:44]} 2. c4 {[%clk 0:03:00]}  g6 {[%clk 0:02:42]} 3. f3 {[%clk 0:03:00]}  Bg7 {[%clk 0:02:42]} 4. e4 {[%clk 0:03:00]}  O-O {[%clk 0:02:43]} 5. Nc3 {[%clk 0:03:00]}  d6 {[%clk 0:02:44]} 6. Be3 {[%clk 0:03:01]}  Nbd7 {[%clk 0:02:44]} 7. Nh3 {[%clk 0:03:01]}  a6 {[%clk 0:02:44]} 8. Qd2 {[%clk 0:03:00]}  c5 {[%clk 0:02:44]} 9. d5 {[%clk 0:02:58]}  b5 {[%clk 0:02:42]} 10. cxb5 {[%clk 0:02:57]}  Qa5 {[%clk 0:02:42]} 11. a4 {[%clk 0:02:48]}  Nb6 {[%clk 0:02:41]} 12. Nf2 {[%clk 0:02:44]}  Nfd7 {[%clk 0:02:41]} 13. Be2 {[%clk 0:02:25]}  Ne5 {[%clk 0:02:40]} 14. O-O {[%clk 0:01:40]}  Nbc4 {[%clk 0:02:38]} 15. Qc1 {[%clk 0:01:36]}  Nxe3 {[%clk 0:02:34]} 16. Qxe3 {[%clk 0:01:36]}  Qb4 {[%clk 0:02:21]} 17. Rfb1 {[%clk 0:01:19]}  Nc4 {[%clk 0:02:06]} 18. Qc1 {[%clk 0:00:29]}  axb5 {[%clk 0:01:37]} 19. Nxb5 {[%clk 0:00:17]}  Bd7 {[%clk 0:01:30]} 20. Qxc4 {[%clk 0:00:15]}  Qa5 {[%clk 0:01:25]} 21. Nd3 {[%clk 0:00:13]}  Rfb8 {[%clk 0:01:26]} 22. Kh1 {[%clk 0:00:13]}  Bxb5 {[%clk 0:01:13]} 23. axb5 {[%clk 0:00:09]}  Qxa1 {[%clk 0:01:14]} 24. Rxa1 {[%clk 0:00:09]}  Rxa1+ {[%clk 0:01:15]} 25. Nc1 {[%clk 0:00:09]}  Bh6 {[%clk 0:01:16]} 26. Bf1 {[%clk 0:00:06]}  Rxc1 {[%clk 0:01:16]} 27. Qe2 {[%clk 0:00:06]}  Ra8 {[%clk 0:01:15]} 28. h4 {[%clk 0:00:04]}  Bf4 {[%clk 0:00:34]} 29. g3 {[%clk 0:00:04]}  Bxg3 {[%clk 0:00:34]} 30. Kg2 {[%clk 0:00:05]}  Bxh4 {[%clk 0:00:34]} 31. b6 {[%clk 0:00:04]}  Rb8 {[%clk 0:00:33]} 32. Qb5 {[%clk 0:00:04]}  Rc2+ {[%clk 0:00:24]} 33. Kh3 {[%clk 0:00:03]}  Bf6 {[%clk 0:00:25]} 34. Qc6 {[%clk 0:00:03]}  Rxb2 {[%clk 0:00:25]} 35. b7 {[%clk 0:00:02]}  R2xb7 {[%clk 0:00:25]} 36. Ba6 {[%clk 0:00:02]}  Rb6 {[%clk 0:00:25]} 37. Qa4 {[%clk 0:00:02]}  Ra8 {[%clk 0:00:24]} 38. Qd7 {[%clk 0:00:02]}  Rbxa6 {[%clk 0:00:24]} 39. f4 {[%clk 0:00:03]}  Ra3+ {[%clk 0:00:23]} 40. Kg4 {[%clk 0:00:03]}  h5# {[%clk 0:00:22]} 0-1


[Site "https://www.chess.com"]

[Event "Titled Tuesday Blitz July 11 Early 2023"]
[White "Dinosaurio_1975"]
[Black "Khromkin, Andrey"]
[BlackFideId "4154126"]
[WhiteElo "2568"]
[BlackElo "2440"]
[Result "1-0"]
[Round "5"]
[TimeControl "180+2"]
[Date "2023.07.11"]
[WhiteClock "0:00:12"]
[BlackClock "0:00:00"]
[Board "101"]

1. e4 {[%clk 0:03:00]}  c5 {[%clk 0:02:44]} 2. Nf3 {[%clk 0:02:59]}  Nc6 {[%clk 0:02:41]} 3. Bb5 {[%clk 0:02:59]}  g6 {[%clk 0:02:41]} 4. O-O {[%clk 0:02:58]}  Bg7 {[%clk 0:02:41]} 5. c3 {[%clk 0:02:58]}  Nf6 {[%clk 0:02:42]} 6. Re1 {[%clk 0:02:58]}  O-O {[%clk 0:02:42]} 7. h3 {[%clk 0:02:57]}  e5 {[%clk 0:02:35]} 8. d4 {[%clk 0:02:57]}  cxd4 {[%clk 0:02:33]} 9. cxd4 {[%clk 0:02:58]}  exd4 {[%clk 0:02:24]} 10. e5 {[%clk 0:02:48]}  Nd5 {[%clk 0:02:21]} 11. Bg5 {[%clk 0:02:40]}  Qb6 {[%clk 0:02:20]} 12. Bc4 {[%clk 0:02:39]}  Qc5 {[%clk 0:02:08]} 13. Bxd5 {[%clk 0:02:34]}  Qxd5 {[%clk 0:02:08]} 14. Nc3 {[%clk 0:02:35]}  Qa5 {[%clk 0:01:58]} 15. Ne4 {[%clk 0:02:33]}  h6 {[%clk 0:01:43]} 16. Nf6+ {[%clk 0:02:13]}  Kh8 {[%clk 0:01:43]} 17. Qc1 {[%clk 0:01:46]}  d6 {[%clk 0:01:15]} 18. Bxh6 {[%clk 0:01:38]}  dxe5 {[%clk 0:01:06]} 19. Qg5 {[%clk 0:00:57]}  Qd8 {[%clk 0:01:04]} 20. Qh4 {[%clk 0:00:17]}  Bxf6 {[%clk 0:00:00]} 21. Ng5 {[%clk 0:00:12]} 1-0


[Site "https://www.chess.com"]

[Event "Titled Tuesday Blitz July 11 Early 2023"]
[White "arenal72"]
[Black "Karttunen, Mika"]
[BlackFideId "502081"]
[WhiteElo "2428"]
[BlackElo "2568"]
[Result "0-1"]
[Round "5"]
[TimeControl "180+2"]
[Date "2023.07.11"]
[WhiteClock "0:00:52"]
[BlackClock "0:00:18"]
[Board "102"]

1. e4 {[%clk 0:03:00]}  c6 {[%clk 0:02:59]} 2. Nf3 {[%clk 0:02:58]}  d5 {[%clk 0:02:59]} 3. Nc3 {[%clk 0:02:59]}  Bg4 {[%clk 0:02:57]} 4. h3 {[%clk 0:02:59]}  Bxf3 {[%clk 0:02:57]} 5. Qxf3 {[%clk 0:02:59]}  e6 {[%clk 0:02:55]} 6. d3 {[%clk 0:02:59]}  Nf6 {[%clk 0:02:54]} 7. g4 {[%clk 0:02:59]}  Bb4 {[%clk 0:02:51]} 8. Bd2 {[%clk 0:02:58]}  d4 {[%clk 0:02:47]} 9. Nb1 {[%clk 0:02:58]}  Qb6 {[%clk 0:02:44]} 10. g5 {[%clk 0:02:43]}  Nfd7 {[%clk 0:02:36]} 11. Be2 {[%clk 0:02:43]}  Bxd2+ {[%clk 0:02:31]} 12. Nxd2 {[%clk 0:02:44]}  Qxb2 {[%clk 0:02:29]} 13. Rb1 {[%clk 0:02:43]}  Qxc2 {[%clk 0:02:29]} 14. Bd1 {[%clk 0:02:43]}  Qxa2 {[%clk 0:02:22]} 15. Rxb7 {[%clk 0:02:42]}  O-O {[%clk 0:02:13]} 16. h4 {[%clk 0:02:40]}  Nc5 {[%clk 0:02:06]} 17. Rc7 {[%clk 0:02:33]}  Nbd7 {[%clk 0:01:50]} 18. h5 {[%clk 0:02:29]}  Ne5 {[%clk 0:01:46]} 19. Qg3 {[%clk 0:02:29]}  Nexd3+ {[%clk 0:01:26]} 20. Ke2 {[%clk 0:02:27]}  Nc1+ {[%clk 0:01:19]} 21. Ke1 {[%clk 0:02:21]}  N5d3+ {[%clk 0:01:19]} 22. Kf1 {[%clk 0:02:20]}  Qxd2 {[%clk 0:01:17]} 23. Kg2 {[%clk 0:02:20]}  Qf4 {[%clk 0:00:50]} 24. Qxf4 {[%clk 0:02:11]}  Nxf4+ {[%clk 0:00:50]} 25. Kg3 {[%clk 0:02:11]}  e5 {[%clk 0:00:48]} 26. Bg4 {[%clk 0:02:00]}  Nce2+ {[%clk 0:00:39]} 27. Kf3 {[%clk 0:01:59]}  d3 {[%clk 0:00:39]} 28. Ke3 {[%clk 0:01:58]}  Rad8 {[%clk 0:00:33]} 29. g6 {[%clk 0:01:47]}  fxg6 {[%clk 0:00:27]} 30. hxg6 {[%clk 0:01:44]}  Nxg6 {[%clk 0:00:27]} 31. Be6+ {[%clk 0:01:42]}  Kh8 {[%clk 0:00:26]} 32. Rxa7 {[%clk 0:01:41]}  Nef4 {[%clk 0:00:26]} 33. Bc4 {[%clk 0:01:35]}  d2 {[%clk 0:00:25]} 34. Raa1 {[%clk 0:01:32]}  Ng2+ {[%clk 0:00:25]} 35. Ke2 {[%clk 0:01:31]}  N6f4+ {[%clk 0:00:24]} 36. Kf3 {[%clk 0:01:31]}  h6 {[%clk 0:00:23]} 37. Kg3 {[%clk 0:01:24]}  Ne1 {[%clk 0:00:23]} 38. Rd1 {[%clk 0:01:21]}  Rd6 {[%clk 0:00:21]} 39. f3 {[%clk 0:01:18]}  Nc2 {[%clk 0:00:19]} 40. Kf2 {[%clk 0:01:17]}  Na3 {[%clk 0:00:18]} 41. Ba6 {[%clk 0:01:12]}  Nb5 {[%clk 0:00:18]} 42. Bxb5 {[%clk 0:01:01]}  cxb5 {[%clk 0:00:18]} 43. Rh2 {[%clk 0:01:02]}  Rc8 {[%clk 0:00:17]} 44. Kg3 {[%clk 0:00:59]}  Rc2 {[%clk 0:00:17]} 45. Rf2 {[%clk 0:00:56]}  b4 {[%clk 0:00:17]} 46. Rff1 {[%clk 0:00:54]}  b3 {[%clk 0:00:18]} 47. Rb1 {[%clk 0:00:54]}  b2 {[%clk 0:00:18]} 48. Kf2 {[%clk 0:00:54]}  Rc1 {[%clk 0:00:18]} 49. Rd1 {[%clk 0:00:53]}  Rxb1 {[%clk 0:00:18]} 50. Rxb1 {[%clk 0:00:52]}  d1=Q {[%clk 0:00:18]} 0-1


[Site "https://www.chess.com"]